bitfinex/quotes_SOLUSD_20260103
["timestamp","ask_amount","ask_price","bid_price","bid_amount"]
[1767434654670,0.70017016,131.13,131.11,8.31491228]
[1767434655752,2.38993446,131.14,131.11,8.31491228]
[1767434656467,0.70024504,131.14,131.12,0.68792636]
[1767434656647,10.01488739,131.15,131.12,0.68792636]
[1767434657874,8.32519797,131.15,131.12,0.68792636]
[1767434658051,10.01488739,131.15,131.12,0.68792636]
[1767434663973,0.69275741,131.14,131.12,0.68792636]
[1767434664777,10.01488739,131.15,131.12,0.68792636]
[1767434665357,0.69275741,131.14,131.12,0.68792636]
[1767434674787,1.68968942,131.16,131.13,0.65905213]
[1767434674788,2.40841261,131.16,131.13,0.65905213]
[1767434674987,2.36415346,131.19,131.14,2.34874155]
[1767434675290,0.67446404,131.19,131.15,0.65905213]
[1767434675694,0.67446404,131.19,131.16,0.65905213]
[1767434680095,0.67446404,131.19,131.16,8.28320573]
[1767434680393,10.0305446,131.2,131.17,0.65905213]
[1767434680590,0.67446404,131.19,131.16,8.28320573]
[1767434687204,0.67446404,131.19,131.17,0.65905213]
[1767434687790,10.0305446,131.2,131.17,0.65905213]
[1767434688420,10.0305446,131.2,131.17,0.62855664]
[1767434690514,10.97822935,131.2,131.17,0.62855664]
[1767434692311,3.35609736,131.2,131.17,0.62855664]
[1767434693925,0.71872319,131.2,131.17,0.62855664]
[1767434694118,3.35609736,131.2,131.17,0.62855664]
[1767434694817,0.71872319,131.2,131.17,0.62855664]
[1767434698207,3.35609736,131.2,131.17,0.62855664]
[1767434700223,0.70465457,131.19,131.17,0.62855664]
[1767434700607,0.70465457,131.19,131.16,8.29857884]
[1767434702321,0.71139424,131.17,131.14,0.67442524]
[1767434702825,0.71139424,131.17,131.14,8.29983215]
[1767434703223,3.34876841,131.17,131.14,8.29983215]
[1767434707831,0.71139424,131.15,131.11,0.67442524]
[1767434708034,3.34876841,131.15,131.11,0.67442524]
[1767434708534,0.71139424,131.15,131.12,0.67442524]
[1767434709032,0.71139424,131.15,131.12,8.30083663]
[1767434709636,3.34876841,131.15,131.12,8.30083663]
[1767434709827,0.71139424,131.15,131.12,8.30083663]
[1767434710333,3.34876841,131.15,131.12,8.30083663]
[1767434710916,0.71139424,131.15,131.12,8.30083663]
[1767434711424,0.71139424,131.15,131.12,0.67442524]
[1767434712838,0.71139424,131.14,131.12,0.67442524]
[1767434713042,0.71139424,131.14,131.11,8.3013998]
[1767434713833,0.71139424,131.14,131.1,8.30208481]
[1767434713834,0.71139424,131.13,131.1,8.30208481]
[1767434715544,0.71139424,131.13,131.1,0.67442524]
[1767434717234,3.34876841,131.13,131.1,0.67442524]
[1767434717934,0.71139424,131.12,131.1,0.67442524]
[1767434718629,0.71139424,131.12,131.09,8.30256976]
[1767434722121,0.71139424,131.11,131.09,0.67442524]
[1767434722320,0.71139424,131.11,131.08,8.50317662]
[1767434727454,3.34876841,131.11,131.08,0.87442524]
[1767434730249,0.68235799,131.1,131.08,0.2]
[1767434736855,0.68235799,131.09,131.08,0.2]
[1767434737357,3.31973216,131.1,131.08,0.2]
[1767434738236,0.68235799,131.1,131.08,0.2]
[1767434747966,3.31973216,131.1,131.08,0.2]
[1767434748470,0.68235799,131.1,131.08,0.2]
[1767434749659,10.94721103,131.11,131.08,0.85428618]
[1767434750473,10.00029852,131.11,131.08,0.85428618]
[1767434751579,0.68235799,131.11,131.09,0.65428618]
[1767434755755,0.68235799,131.11,131.08,8.48313631]
[1767434760671,2.37281965,131.11,131.08,8.48313631]
[1767434760971,0.68977318,131.09,131.08,0.2]
[1767434761171,2.38023484,131.1,131.08,0.2]
[1767434767581,0.68977318,131.1,131.08,0.2]
[1767434768991,2.38023484,131.12,131.09,0.68259974]
[1767434769284,0.68977318,131.11,131.09,0.68259974]
[1767434772271,0.68977318,131.11,131.08,8.51146436]
[1767434772472,2.38023484,131.11,131.08,8.51146436]
[1767434773094,2.38023484,131.11,131.08,0.88259974]
[1767434776594,8.31648206,131.12,131.09,0.68259974]
[1767434776794,10.00694372,131.12,131.09,0.68259974]
[1767434777479,0.68977318,131.11,131.09,0.68259974]
[1767434778291,10.00694372,131.12,131.09,0.68259974]
[1767434778684,2.38023484,131.12,131.09,0.68259974]
[1767434778992,21.54623262,131.13,131.09,0.68259974]
[1767434778993,0.68977318,131.13,131.1,0.68259974]
[1767434779295,23.9257834,131.14,131.1,0.68259974]
[1767434779993,23.9257834,131.14,131.11,0.68259974]
[1767434780296,0.68977318,131.13,131.11,0.68259974]
[1767434783374,0.68977318,131.13,131.11,0.65208881]
[1767434784996,1.69046166,131.14,131.11,0.65208881]
[1767434785570,1.69046166,131.14,131.12,0.68259974]
[1767434785974,2.38023484,131.15,131.12,0.68259974]
[1767434788277,0.68977318,131.14,131.12,0.68259974]
[1767434792504,2.38023484,131.14,131.12,0.68259974]
[1767434793293,8.31529942,131.14,131.11,0.68912606]
[1767434793511,1.69046166,131.13,131.11,0.68912606]
[1767434794806,10.00891509,131.13,131.1,0.68912606]
[1767434799220,0.69232276,131.11,131.09,8.31747299]
[1767434799592,2.38278442,131.12,131.09,8.31747299]
[1767434799992,0.69232276,131.11,131.09,8.31747299]
[1767434800191,1.69046166,131.12,131.09,8.31747299]
[1767434800408,2.38278442,131.12,131.09,8.31747299]
[1767434801622,0.69232276,131.12,131.09,8.31747299]
[1767434802926,0.69232276,131.1,131.08,0.2]
[1767434803833,8.32041425,131.1,131.08,0.2]
[1767434804524,0.69232276,131.09,131.08,0.2]
[1767434808630,10.01113135,131.09,131.08,1e-08]
[1767434808815,8.32066969,131.09,131.08,1e-08]
[1767434809618,0.69232276,131.09,131.08,1e-08]
[1767434818039,8.32066969,131.09,131.08,1e-08]
[1767434821908,10.96223519,131.09,131.07,0.2]
[1767434823220,3.34947111,131.08,131.05,0.2]
[1767434823427,0.70790561,131.06,131.05,0.2]
[1767434823642,3.34947111,131.07,131.05,0.91858472]
[1767434823942,10.97900527,131.07,131.05,0.91858472]
[1767434825339,30.04920827,131.09,131.06,0.71858472]
[1767434826565,0.70790561,131.08,131.06,0.71858472]
[1767434827741,7.62951094,131.07,131.06,0.71858472]
[1767434828449,7.62951094,131.07,131.05,0.2]
[1767434828919,8.33741655,131.07,131.05,0.2]
[1767434830338,0.70790561,131.08,131.05,0.91858472]
[1767434830843,3.34947111,131.08,131.05,0.91858472]
[1767434831041,0.70790561,131.08,131.05,0.91858472]
[1767434832229,10.97867659,131.08,131.05,0.91858472]
[1767434833439,0.70790561,131.07,131.05,0.91858472]
[1767434840853,3.34947111,131.11,131.07,0.71858472]
[1767434841179,0.70790561,131.11,131.07,0.71858472]
[1767434841356,0.70790561,131.11,131.08,0.71858472]
[1767434841874,10.97607269,131.12,131.08,0.71858472]
[1767434842067,0.70790561,131.11,131.08,0.71858472]
[1767434843677,0.70790561,131.1,131.07,0.71858472]
[1767434843877,0.70790561,131.1,131.06,8.34864382]
[1767434844564,0.70790561,131.1,131.07,0.71858472]
[1767434844766,0.70790561,131.1,131.07,10.98947947]
[1767434845389,0.70790561,131.1,131.07,0.71858472]
[1767434845594,8.33569672,131.1,131.07,0.71858472]
[1767434846986,0.70790561,131.09,131.06,10.99007778]
[1767434847288,0.70790561,131.09,131.06,8.34851228]
[1767434847496,0.70790561,131.09,131.06,10.99007778]
[1767434847695,0.70790561,131.09,131.07,0.71858472]
[1767434851393,0.70790561,131.09,131.06,2.6415655]
[1767434851691,0.65616021,131.08,131.05,24.39189107]
[1767434851877,0.65616021,131.08,131.05,10.47189107]
[1767434852294,0.65616021,131.08,131.05,0.2]
[1767434853472,0.65616021,131.07,131.05,0.2]
[1767434860398,0.65616021,131.06,131.04,0.2]
[1767434862504,0.65616021,131.05,131.04,0.2]
[1767434867529,7.6300971,131.06,131.02,0.2]
[1767434867530,0.65616021,131.04,131.02,0.2]
[1767434869024,0.65616021,131.05,131.02,3.53016197]
[1767434869221,8.28625329,131.06,131.03,0.68859647]
[1767434869399,0.65616021,131.05,131.03,0.68859647]
[1767434869601,0.65616021,131.05,131.02,11.16246267]
[1767434873426,7.63009308,131.06,131.01,0.2]
[1767434873427,0.65616021,131.03,131.01,0.2]
[1767434875037,0.65616021,131.03,131.01,0.88859647]
[1767434875930,38.14176007,131.09,131.01,0.88859647]
[1767434875931,19.32871095,131.1,131.03,0.68859647]
[1767434876135,0.65616021,131.09,131.06,0.68859647]
[1767434876721,0.65616021,131.09,131.05,2.38012116]
[1767434877122,0.65616021,131.08,131.05,10.0105981]
[1767434880319,0.65616021,131.08,131.05,8.31907341]
[1767434880839,0.65616021,131.08,131.05,0.68859647]
[1767434881219,0.67017377,131.07,131.04,10.02321788]
[1767434881434,0.67017377,131.07,131.05,0.70061946]
[1767434885044,0.67017377,131.08,131.05,8.33119304]
[1767434886838,0.67017377,131.11,131.07,0.70061946]
[1767434887040,0.67017377,131.12,131.08,0.70061946]
[1767434887927,0.67017377,131.12,131.09,0.70061946]
[1767434890530,8.29669217,131.13,131.1,0.70061946]
[1767434890855,0.67017377,131.13,131.1,0.70061946]
[1767434891739,0.67017377,131.13,131.1,8.32837213]
[1767434895351,9.98779756,131.13,131.1,0.70061946]
[1767434897658,9.98779756,131.13,131.1,0.67010702]
[1767434898543,0.67017377,131.14,131.1,7.62774192]
[1767434899155,2.36169846,131.14,131.1,7.62774192]
[1767434899551,2.36169846,131.14,131.1,0.70061946]
[1767434899738,0.67017377,131.14,131.1,0.70061946]
[1767434899940,0.67017377,131.14,131.11,0.70061946]
[1767434908469,2.36169846,131.14,131.11,0.70061946]
[1767434909148,0.67017377,131.12,131.1,0.70061946]
[1767434909772,2.35859938,131.13,131.1,0.70061946]
[1767434909953,0.66707469,131.13,131.1,0.70061946]
[1767434910773,2.35859938,131.14,131.11,0.67697553]
[1767434912451,0.66707469,131.14,131.11,0.67697553]
[1767434913667,0.66707469,131.14,131.12,0.67697553]
[1767434914055,1.69152469,131.15,131.12,0.67697553]
[1767434914356,2.35859938,131.15,131.12,0.67697553]
[1767434915470,1.69152469,131.16,131.13,0.67697553]
[1767434915666,9.98254246,131.17,131.13,0.67697553]
[1767434915867,0.66707469,131.16,131.13,0.67697553]
[1767434916674,0.66707469,131.16,131.13,8.30296919]
[1767434919977,0.66707469,131.16,131.14,0.67697553]
[1767434921790,0.66707469,131.19,131.15,0.67697553]
[1767434922099,0.66707469,131.19,131.16,0.67697553]
[1767434922890,8.28925261,131.2,131.16,0.67697553]
[1767434923101,0.66707469,131.2,131.16,0.67697553]
[1767434924189,0.66707469,131.2,131.17,0.67697553]
[1767434925477,2.35859938,131.2,131.17,0.67697553]
[1767434927170,9.98061322,131.2,131.17,0.67697553]
[1767434927682,2.35859938,131.2,131.17,0.67697553]
[1767434927861,9.98056097,131.2,131.17,0.67697553]
[1767434928492,1.69152469,131.19,131.17,0.67697553]
[1767434928987,2.35859938,131.18,131.14,1.43951937]
[1767434929169,0.66707469,131.16,131.13,0.67697553]
[1767434929368,2.35859938,131.16,131.13,0.67697553]
[1767434929668,1.69152469,131.15,131.13,0.67697553]
[1767434932788,2.35859938,131.16,131.13,0.67697553]
[1767434934391,2.35859938,131.16,131.13,8.30298489]
[1767434934578,3.30618799,131.16,131.13,8.30298489]
[1767434934776,0.66707469,131.16,131.13,8.30298489]
[1767434935000,3.30618799,131.16,131.13,8.30298489]
[1767434937796,10.93064441,131.16,131.13,0.67697553]
[1767434938272,3.30618799,131.16,131.13,0.67697553]
[1767434938476,0.66707469,131.15,131.13,0.67697553]
[1767434939073,3.30618799,131.15,131.12,0.67697553]
[1767434940204,10.93108953,131.15,131.12,0.67697553]
[1767434940901,8.29197623,131.15,131.12,0.67697553]
[1767434942582,10.93108953,131.15,131.12,0.67697553]
[1767434943323,8.29197623,131.15,131.12,0.67697553]
[1767434943490,10.93108953,131.15,131.12,0.67697553]
[1767434945415,2.6391133,131.14,131.12,0.67697553]
[1767434945816,8.29197623,131.15,131.12,0.67697553]
[1767434946197,2.6391133,131.14,131.12,0.67697553]
[1767434946910,3.30618799,131.15,131.12,0.67697553]
[1767434949925,0.66707469,131.15,131.12,0.67697553]
[1767434950132,3.30618799,131.15,131.12,0.67697553]
[1767434951234,0.66707469,131.15,131.12,0.67697553]
[1767434951404,3.30618799,131.15,131.12,0.67697553]
[1767434954124,3.30618799,131.15,131.13,0.69432593]
[1767434954331,3.30618799,131.15,131.12,8.32089345]
[1767434954506,2.6391133,131.15,131.13,0.69432593]
[1767434954704,3.33745748,131.16,131.13,0.69432593]
[1767434960532,2.6391133,131.15,131.13,0.69432593]
[1767434967441,0.69834418,131.16,131.13,0.69432593]
[1767434967639,2.6391133,131.15,131.13,0.69432593]
[1767434968526,3.33745748,131.15,131.13,0.69432593]
[1767434971045,3.29282943,131.14,131.11,8.31846186]
[1767434971337,2.6391133,131.12,131.1,0.69137743]
[1767434971542,3.29282943,131.12,131.09,8.3195777]
[1767434972119,3.29282943,131.12,131.09,7.62820027]
[1767434972333,3.29282943,131.12,131.09,8.3195777]
[1767434973073,2.6391133,131.11,131.09,0.69137743]
[1767434973757,2.6391133,131.1,131.08,0.69137743]
[1767434974068,7.62485703,131.15,131.1,0.69137743]
[1767434974250,2.6391133,131.15,131.11,0.69137743]
[1767434974448,2.6391133,131.16,131.11,0.69137743]
[1767434975052,2.6391133,131.17,131.13,0.69137743]
[1767434976066,3.29282943,131.17,131.13,0.69137743]
[1767434976266,0.65371613,131.17,131.13,0.69137743]
[1767434978377,0.65371613,131.17,131.13,8.31723131]
[1767434978559,0.65371613,131.17,131.14,0.69137743]
[1767434978954,10.9165493,131.17,131.14,0.69137743]
[1767434981957,0.29329347,131.16,131.14,0.69137743]
[1767434982688,10.9165493,131.17,131.14,0.69137743]
[1767434983085,8.277436,131.17,131.14,0.69137743]
[1767434983265,10.9165493,131.17,131.14,0.69137743]
[1767434984185,8.277436,131.17,131.14,0.69137743]
[1767434984364,10.9165493,131.17,131.14,0.69137743]
[1767434985460,0.29329347,131.16,131.14,0.69137743]
[1767434986272,0.29329347,131.16,131.13,0.69137743]
[1767434986584,2.93240677,131.16,131.13,0.69137743]
[1767434986771,0.29329347,131.16,131.13,0.69137743]
[1767434987863,0.65011191,131.15,131.12,0.69137743]
[1767434988458,0.29686165,131.14,131.11,0.69137743]
[1767434988773,2.93597495,131.14,131.11,0.69137743]
[1767434989683,0.64657941,131.13,131.11,0.69137743]
[1767434989889,3.28569271,131.13,131.11,0.69137743]
[1767434990984,0.30035883,131.12,131.1,0.69137743]
[1767434991486,0.30035883,131.12,131.09,22.23954932]
[1767434993392,3.29282943,131.13,131.1,0.69137743]
[1767434994489,2.34332832,131.13,131.1,0.69137743]
[1767434997403,0.29329347,131.12,131.09,22.23971037]
[1767435000300,0.29329347,131.12,131.1,0.65335842]
[1767435000992,0.65011191,131.11,131.09,13.92]
[1767435001373,0.65011191,131.11,131.08,0.65335842]
[1767435001374,0.65011191,131.11,131.08,8.28219324]
[1767435001884,0.65011191,131.11,131.08,0.65335842]
[1767435002192,2.3397241,131.11,131.08,0.65335842]
[1767435003401,9.96697399,131.11,131.08,0.65335842]
[1767435005701,8.2773618,131.11,131.08,0.65335842]
[1767435005893,9.96697399,131.11,131.08,0.65335842]
[1767435007710,0.29686165,131.1,131.07,0.65335842]
[1767435007882,9.6145097,131.1,131.07,0.65335842]
[1767435008199,7.92489751,131.1,131.07,0.65335842]
[1767435008786,8.30170012,131.11,131.07,0.65335842]
[1767435008986,9.99131231,131.11,131.07,0.65335842]
[1767435009181,0.27279726,131.1,131.07,0.65335842]
[1767435010404,0.27279726,131.1,131.07,8.28283958]
[1767435011690,0.67040316,131.09,131.06,0.65335842]
[1767435011900,2.36001535,131.09,131.06,0.65335842]
[1767435012098,0.67040316,131.09,131.06,8.28342524]
[1767435012298,2.36403157,131.11,131.08,0.65335842]
[1767435012496,0.27279726,131.1,131.08,0.65335842]
[1767435013589,8.30170701,131.11,131.08,0.65335842]
[1767435016511,0.67441938,131.11,131.08,8.28208864]
[1767435016688,22.21992001,131.14,131.1,2.34297061]
[1767435017011,0.27279726,131.13,131.1,2.34297061]
[1767435020222,0.27279726,131.13,131.1,0.65335842]
[1767435020422,0.27279726,131.13,131.1,2.34297061]
[1767435020720,0.27279726,131.13,131.1,9.97058439]
[1767435023123,0.27279726,131.13,131.11,0.65335842]
[1767435032427,2.35635652,131.12,131.07,2.39641459]
[1767435032636,0.66288084,131.1,131.08,0.7068024]
[1767435032828,8.29422366,131.11,131.08,0.7068024]
[1767435034623,0.28039556,131.1,131.08,0.7068024]
[1767435034821,0.28039556,131.1,131.07,1.68961219]
[1767435035022,0.28039556,131.1,131.06,10.02632581]
[1767435035422,0.28039556,131.1,131.07,0.7068024]
[1767435035917,0.28039556,131.1,131.06,10.02632581]
[1767435036309,0.28039556,131.1,131.07,0.7068024]
[1767435041131,0.28422041,131.08,131.05,0.7068024]
[1767435041333,0.65909424,131.07,131.05,0.7068024]
[1767435042840,8.28894268,131.07,131.04,0.7068024]
[1767435045324,0.28796915,131.06,131.04,0.7068024]
[1767435048042,0.28796915,131.06,131.03,2.39641459]
[1767435049459,0.28796915,131.06,131.04,0.7068024]
[1767435051537,7.91811296,131.06,131.03,2.39641459]
[1767435051735,7.91811296,131.06,131.04,0.7068024]
[1767435053234,7.91811296,131.06,131.03,2.39641459]
[1767435053555,7.91811296,131.06,131.04,0.7068024]
[1767435057856,0.65538298,131.05,131.01,0.9068024]
[1767435058159,0.65538298,131.05,131.02,0.7068024]
[1767435059339,0.65538298,131.05,131.02,3.34889181]
[1767435059962,0.29164329,131.04,131.01,3.50139961]
[1767435060163,0.29164329,131.04,131.02,2.64208941]
[1767435060666,0.29164329,131.04,131.01,0.8593102]
[1767435060849,0.29164329,131.04,131.01,3.50139961]
[1767435061444,0.29164329,131.04,131.01,0.2]
[1767435062357,0.29524431,131.02,131.01,0.2]
[1767435062750,8.31525439,131.03,131.01,0.2]
[1767435062957,0.26389223,131.02,131.01,0.2]
[1767435064864,8.31525439,131.03,131.01,0.2]
[1767435066366,0.26389223,131.02,131.0,0.2]
[1767435067753,7.89644919,131.02,131.0,0.2]
[1767435070170,0.26389223,131.02,131.0,0.2]
[1767435072971,7.89633046,131.02,131.0,0.2]
[1767435073551,0.26389223,131.02,131.0,0.2]
[1767435075275,7.89634408,131.02,131.0,0.2]
[1767435077372,0.26389223,131.02,131.0,0.2]
[1767435078156,0.67921914,131.01,131.0,0.2]
[1767435079678,0.68341436,131.02,131.0,0.2]
[1767435082864,8.31584985,131.02,131.0,0.2]
[1767435085084,0.68341436,131.02,131.0,0.2]
[1767435088389,0.68341436,131.02,131.0,0.8593102]
[1767435099505,0.68341436,131.02,131.0,0.2]
[1767435101488,8.31585675,131.02,131.0,0.2]
[1767435102311,8.31585675,131.02,131.0,0.87842799]
[1767435104714,0.68341436,131.02,131.0,0.87842799]
[1767435107907,8.31624295,131.02,131.0,0.87842799]
[1767435108208,8.31624295,131.02,131.0,0.2]
[1767435108509,0.68341436,131.02,131.0,0.87842799]
[1767435113705,32.99931443,131.04,131.01,0.67842799]
[1767435113706,0.68736554,131.04,131.01,0.67842799]
[1767435118324,8.31875374,131.04,131.01,0.67842799]
[1767435121324,0.25998056,131.03,131.0,0.89147312]
[1767435121527,0.25998056,131.03,131.01,0.69147312]
[1767435121720,0.25998056,131.03,131.0,0.89147312]
[1767435123601,8.31551422,131.02,131.0,0.2]
[1767435124329,7.63242253,131.02,131.0,0.89147312]
[1767435127926,7.87605229,131.02,130.99,0.69147312]
[1767435128109,0.69927898,131.01,130.98,0.89147312]
[1767435128508,2.39096817,131.01,130.98,0.89147312]
[1767435129128,10.02452794,131.01,130.98,0.89147312]
[1767435129528,0.24818625,131.0,130.98,0.2]
[1767435130430,10.02913046,131.01,130.98,0.89147312]
[1767435131507,8.33744127,131.01,130.98,0.89147312]
[1767435132111,10.02913046,131.01,130.98,0.89147312]
[1767435133004,8.33744127,131.01,130.98,0.89147312]
[1767435133828,10.02913046,131.01,130.98,0.89147312]
[1767435134029,2.39096817,130.99,130.97,0.2]
[1767435135736,0.49676806,130.97,130.96,0.2]
[1767435136110,1.94236125,130.98,130.96,0.2]
[1767435137108,9.57744843,130.98,130.96,0.2]
[1767435137313,9.57744843,130.98,130.96,1e-08]
[1767435138235,0.7038815,130.96,130.94,0.2]
[1767435138541,2.39557069,130.96,130.94,0.2]
[1767435138838,2.39557069,130.97,130.94,0.2]
[1767435139429,7.63591936,130.96,130.94,0.2]
[1767435140124,7.63591936,130.96,130.94,0.89147312]
[1767435140320,8.33980086,130.96,130.94,0.89147312]
[1767435141212,10.03149005,130.96,130.94,0.89147312]
[1767435141416,10.03149005,130.96,130.94,0.2]
[1767435141638,8.34038398,130.95,130.94,1e-08]
[1767435141822,7.63650248,130.95,130.94,1e-08]
[1767435143029,10.03207317,130.95,130.94,1e-08]
[1767435144541,10.03207317,130.95,130.92,0.69147312]
[1767435144941,0.7038815,130.94,130.91,0.2]
[1767435145244,2.39557069,130.94,130.91,0.2]
[1767435145446,0.7038815,130.94,130.91,0.2]
[1767435146046,8.34117403,130.94,130.91,0.2]
[1767435146349,10.03286322,130.94,130.91,0.2]
[1767435146950,10.03286322,130.94,130.91,0.89147312]
[1767435149529,2.40530881,130.93,130.91,0.89147312]
[1767435149729,2.40530881,130.93,130.91,0.2]
[1767435150552,2.40530881,130.93,130.91,0.92064613]
[1767435151148,0.71361962,130.93,130.91,0.92064613]
[1767435151336,10.04613271,130.94,130.91,0.92064613]
[1767435153956,0.71715099,130.92,130.91,0.2]
[1767435154160,2.40884018,130.93,130.91,0.2]
[1767435156653,0.71715099,130.92,130.91,0.2]
[1767435156855,2.40884018,130.92,130.91,0.2]
[1767435157050,2.40884018,130.92,130.9,0.2]
[1767435158049,0.71715099,130.91,130.9,1e-08]
[1767435158364,2.40884018,130.91,130.9,1e-08]
[1767435159152,8.35598683,130.91,130.9,1e-08]
[1767435161160,10.04767602,130.91,130.9,1e-08]
[1767435162149,7.63883584,130.91,130.9,1e-08]
[1767435163333,10.04767602,130.91,130.9,1e-08]
[1767435165255,10.04767602,130.91,130.88,0.72064613]
[1767435166159,8.35681121,130.9,130.88,0.72064613]
[1767435166338,10.0485004,130.9,130.88,0.72064613]
[1767435166541,0.71715099,130.89,130.87,23.05078343]
[1767435167041,0.71715099,130.89,130.87,23.77142956]
[1767435167249,10.0485004,130.9,130.87,23.77142956]
[1767435168772,0.71715099,130.88,130.87,23.05078343]
[1767435169254,2.40884018,130.89,130.87,23.05078343]
[1767435169855,2.40884018,130.89,130.87,23.77142956]
[1767435171972,1.69168919,130.89,130.87,23.77142956]
[1767435172471,2.40884018,130.89,130.87,23.05078343]
[1767435172648,1.69168919,130.89,130.87,23.77142956]
[1767435172849,10.0485004,130.9,130.87,23.77142956]
[1767435174067,0.71715099,130.93,130.88,0.72064613]
[1767435174254,2.40884018,130.93,130.88,0.72064613]
[1767435175147,10.04655807,130.93,130.89,8.36064918]
[1767435176848,8.35486888,130.93,130.9,0.72064613]
[1767435177050,0.71715099,130.93,130.9,0.72064613]
[1767435178154,8.35490816,130.93,130.9,0.72064613]
[1767435178972,11.00295519,130.93,130.9,0.72064613]
[1767435181677,3.37051983,130.92,130.9,0.72064613]
[1767435181875,3.37051983,130.92,130.89,0.67147801]
[1767435183080,11.00883488,130.92,130.89,0.67147801]
[1767435183455,8.36078785,130.92,130.89,0.67147801]
[1767435183780,11.00883488,130.92,130.89,0.67147801]
[1767435184759,8.36078785,130.92,130.89,0.67147801]
[1767435187682,11.00883488,130.92,130.89,0.67147801]
[1767435189764,0.7224728,130.91,130.89,0.67147801]
[1767435190962,8.36078785,130.92,130.89,0.67147801]
[1767435196295,11.00883488,130.92,130.89,0.67147801]
[1767435199593,0.7224728,130.92,130.89,0.67147801]
[1767435201575,3.37051983,130.92,130.89,0.67147801]
[1767435202398,0.7224728,130.91,130.88,0.67147801]
[1767435203286,0.7224728,130.91,130.88,8.31202717]
[1767435203496,0.7224728,130.91,130.89,0.67147801]
[1767435205907,0.7224728,130.92,130.89,0.67147801]
[1767435206107,3.37051983,130.92,130.89,0.67147801]
[1767435206705,0.7224728,130.91,130.89,0.67147801]
[1767435211185,8.36146222,130.91,130.89,0.67147801]
[1767435211386,11.00950925,130.91,130.89,0.67147801]
[1767435212405,0.71295344,130.9,130.87,23.76839659]
[1767435213103,8.35252108,130.9,130.87,23.76839659]
[1767435214406,11.00056811,130.9,130.87,23.76839659]
[1767435214901,0.71295344,130.89,130.87,23.05078343]
[1767435215205,8.35306951,130.89,130.87,23.05078343]
[1767435216493,11.00111654,130.89,130.87,23.05078343]
[1767435217313,8.35306951,130.89,130.87,23.05078343]
[1767435217699,11.00111654,130.89,130.87,23.05078343]
[1767435218107,7.64011607,130.89,130.87,23.76839659]
[1767435219716,8.35306951,130.89,130.87,23.76839659]
[1767435223016,8.35306951,130.89,130.87,23.05078343]
[1767435224530,11.00111654,130.89,130.87,23.05078343]
[1767435228108,13.94,130.92,130.84,2.64804703]
[1767435228109,0.68801531,130.87,130.84,0.71761316]
[1767435228313,0.71270405,130.86,130.83,8.36106424]
[1767435228915,0.71270405,130.86,130.83,0.71761316]
[1767435229121,3.36075108,130.86,130.83,0.71761316]
[1767435230333,0.6882622,130.85,130.83,0.71761316]
[1767435231935,0.71245963,130.84,130.82,0.71761316]
[1767435232135,8.35538138,130.85,130.82,0.71761316]
[1767435232834,0.71295344,130.85,130.83,0.71761316]
[1767435233014,0.71295344,130.86,130.83,0.71761316]
[1767435236144,0.68801531,130.85,130.83,0.71761316]
[1767435236343,10.29007963,130.86,130.83,0.71761316]
[1767435236544,7.64138388,130.87,130.84,0.71761316]
[1767435237043,8.32939919,130.87,130.84,0.71761316]
[1767435239847,10.97744622,130.87,130.84,0.71761316]
[1767435240549,10.02580177,130.87,130.84,0.71761316]
[1767435240946,0.6547163,130.86,130.84,0.71761316]
[1767435241648,2.35111888,130.86,130.84,0.71761316]
[1767435241845,2.35111888,130.86,130.83,0.71900005]
[1767435242446,9.99294881,130.86,130.83,0.71900005]
[1767435242853,2.35111888,130.85,130.82,0.71900005]
[1767435244436,9.99377072,130.85,130.82,0.71900005]
[1767435248043,0.6547163,130.83,130.8,0.71900005]
[1767435248243,2.35111888,130.83,130.8,0.71900005]
[1767435249154,9.99468084,130.83,130.8,0.71900005]
[1767435249565,8.29827826,130.83,130.8,0.71900005]
[1767435249767,9.99468084,130.83,130.8,0.71900005]
[1767435251872,0.6547163,130.85,130.81,1.69640258]
[1767435252052,0.6547163,130.85,130.82,0.71900005]
[1767435256871,0.6547163,130.84,130.82,0.71900005]
[1767435257075,2.35111888,130.84,130.81,0.71900005]
[1767435258883,9.99408358,130.84,130.81,0.71900005]
[1767435259077,0.6547163,130.83,130.81,0.71900005]
[1767435261356,0.6547163,130.83,130.8,8.36424349]
[1767435261555,0.6547163,130.83,130.8,0.71900005]
[1767435261972,0.6547163,130.83,130.8,8.36420455]
[1767435262486,0.6547163,130.83,130.81,0.71900005]
[1767435264889,0.6547163,130.83,130.8,7.6452045]
[1767435265281,8.297681,130.84,130.81,0.71900005]
[1767435269272,7.6429647,130.84,130.81,0.71900005]
[1767435269682,8.31700507,130.84,130.81,0.71900005]
[1767435271794,0.67404037,130.84,130.81,0.71900005]
[1767435272094,0.67404037,130.84,130.82,0.6804999]
[1767435273598,8.31699628,130.84,130.82,0.6804999]
[1767435279402,7.64295591,130.84,130.82,0.6804999]
[1767435279579,0.67404037,130.85,130.82,0.6804999]
[1767435281282,0.67404037,130.85,130.82,8.32444404]